[Event "FRA-chT Top 12 2019"]
[Site "Brest"]
[Date "2019.05.26"]
[Round "9.3"]
[White "Velten, Paul"]
[Black "Efimov, Igor"]
[Result "1-0"]
[ECO "A41"]
[WhiteElo "2507"]
[BlackElo "2439"]
[Annotator "ChessBase"]
[PlyCount "63"]
[EventDate "2019.05.18"]
[EventType "team-tourn"]
[EventCountry "FRA"]
[SourceTitle "playchess.com"]
[Source "ChessBase"]
[SourceQuality "1"]
[TimeControl "40/5400+30:1800+30"]

1. d4 {[%emt 0:00:00]} d6 {[%emt 0:00:00]} 2. Nf3 {[%emt 0:00:46]} g6 {[%emt 0:02:45]} 3. e4 {[%emt 0:07:44]} Bg7 {[%emt 0:00:20]} 4. Be2 {[%emt 0:05:46]} Nd7 {[%emt 0:05:39]} 5. O-O {[%emt 0:15:41]} e5 {[%emt 0:00:58]} 6. d5 {[%emt 0:07:40]} Ngf6 {[%emt 0:04:35]} 7. Nfd2 {[%emt 0:01:29]} O-O {[%emt 0:09:41]} 8. c4 {[%emt 0:00:40]} Ne8 {[%emt 0:00:42]} 9. Nc3 {[%emt 0:00:42]} f5 {[%emt 0:00:12]} 10. exf5 {[%emt 0:00:43]} gxf5 {[%emt 0:00:08]} 11. Rb1 {[%emt 0:00:43]} Kh8 {[%emt 0:15:02]} 12. b4 {[%emt 0:02:10]} Rg8 {[%emt 0:04:01]} 13. Rb3 {[%emt 0:03:00]} a5 {[%emt 0:04:14]} 14. a3 {[%emt 0:00:38]} e4 {[%emt 0:01:14]} 15. Ncxe4 {[%emt 0:10:10]} fxe4 {[%emt 0:01:36]} 16. Nxe4 {[%emt 0:00:06]} Ne5 {[%emt 0:09:27]} 17. Rg3 {[%emt 0:07:04]} Bf5 {[%emt 0:02:44]} 18. Ng5 {[%emt 0:00:33]} Qe7 {[%emt 0:01:46]} 19. f4 {[%emt 0:00:57]} Nf7 {[%emt 0:03:00]} 20. Re3 {[%emt 0:14:51]} Qf6 {[%emt 0:00:40]} 21. Bb2 {[%emt 0:01:23]} Ne5 {[%emt 0:00:12]} 22. Rg3 {[%emt 0:00:54]} Qe7 {[%emt 0:08:50]} 23. fxe5 {[%emt 0:00:14]} Bg6 {[%emt 0:00:02]} 24. Bd3 {[%emt 0:02:31]} Bxe5 {[%emt 0:02:30]} 25. Bxe5+ {[%emt 0:00:42]} dxe5 {[%emt 0:00:17]} 26. Bxg6 {[%emt 0:00:26]} Rxg6 {[%emt 0:00:24]} 27. Rf7 {[%emt 0:00:16]} Qxg5 {[%emt 0:02:45]} 28. Rxg5 {[%emt 0:00:07]} Rxg5 {[%emt 0:00:03]} 29. h4 {[%emt 0:00:15]} Rg6 {[%emt 0:01:45]} 30. Qh5 {[%emt 0:01:10]} Nf6 {[%emt 0:00:47]} 31. Qxe5 {[%emt 0:00:29]} Re8 {[%emt 0:00:34]} 32. Qb2 {[%emt 0:01:26]} 1-0

[Event "FRA-chT Top 12 2019"]
[Site "Brest"]
[Date "2019.05.26"]
[Round "9.3"]
[White "Sokolov, Andrei"]
[Black "Eljanov, Pavel"]
[Result "1/2-1/2"]
[ECO "C60"]
[WhiteElo "2496"]
[BlackElo "2661"]
[Annotator "RC"]
[PlyCount "153"]
[EventDate "2019.05.18"]
[EventType "team-tourn"]
[EventCountry "FRA"]
[SourceTitle "playchess.com"]
[Source "ChessBase"]
[SourceQuality "1"]
[TimeControl "40/5400+30:1800+30"]

1. e4 {[%emt 0:00:00]} e5 {[%emt 0:00:00]} 2. Nf3 {[%emt 0:00:00]} Nc6 {[%emt 0:00:00]} 3. Bb5 {[%emt 0:00:13]} g6 {[%emt 0:00:00]} 4. d4 {[%emt 0:11:45]} exd4 {[%emt 0:00:12]} 5. Bg5 {[%emt 0:04:05]} Be7 {[%emt 0:00:34]} 6. Bxe7 {[%emt 0:02:03]} Qxe7 {[%emt 0:00:05]} 7. Bxc6 {[%emt 0:00:40]} dxc6 {[%emt 0:00:03]} 8. Qxd4 {[%emt 0:00:14]} Nf6 {[%emt 0:00:07]} 9. Nc3 {[%emt 0:00:17]} Bg4 {[%emt 0:02:17]} 10. Nd2 {[%emt 0:07:00]} c5 {[%emt 0:00:49]} 11. Qe3 {[%emt 0:01:55]} O-O-O {[%emt 0:00:24]} 12. f3 {[%emt 0:08:05]} Be6 {[%emt 0:00:29]} 13. O-O-O {[%emt 0:00:15]} b6 {[%emt 0:03:00]} 14. Rhe1 {[%emt 0:12:47]} h5 {[%emt 0:19:39]} 15. h3 {[%emt 0:08:48]} Kb8 {[%emt 0:15:17]} 16. f4 {[%emt 0:08:47]} Bc8 {[%emt 0:00:28]} 17. Nf3 {[%emt 0:03:08]} Bb7 {[%emt 0:04:04]} 18. Ng5 {[%emt 0:07:22]} Rhe8 {[%emt 0:03:59]} 19. Rxd8+ {[%emt 0:05:27]} Rxd8 {[%emt 0:00:04]} 20. g3 {[%emt 0:07:04]} Ne8 {[%emt 0:02:48]} 21. Nd5 {[%emt 0:02:23]} Qd7 {[%emt 0:01:22]} 22. Rd1 {[%emt 0:01:45]} f6 {[%emt 0:02:36]} 23. Nc3 {[%emt 0:01:26]} Nd6 {[%emt 0:00:22]} 24. e5 {[%emt 0:01:28]} Qe7 {[%emt 0:18:33]} 25. Nge4 {[%emt 0:00:44]} Nf5 {[%emt 0:01:56]} 26. Rxd8+ {[%emt 0:01:16]} Qxd8 {[%emt 0:00:03]} 27. Qd2 {[%emt 0:01:31]} Qxd2+ {[%emt 0:00:08]} 28. Kxd2 {[%emt 0:00:21]} fxe5 {[%emt 0:00:05]} 29. fxe5 {[%emt 0:00:15]} Kc8 {[%emt 0:00:03]} 30. g4 {[%emt 0:01:11]} hxg4 {[%emt 0:03:35]} 31. hxg4 {[%emt 0:00:04]} Nd4 {[%emt 0:00:09]} 32. Nf6 {[%emt 0:01:25]} Kd8 {[%emt 0:01:36]} 33. Ncd5 {[%emt 0:01:53]} Nf3+ {[%emt 0:01:23]} 34. Ke3 {[%emt 0:00:13]} Nxe5 {[%emt 0:00:04]} 35. Kf4 {[%emt 0:00:22]} Nf7 {[%emt 0:00:17]} 36. g5 {[%emt 0:00:52]} Bc8 {[%emt 0:04:29]} 37. a3 {[%emt 0:00:25]} c6 {[%emt 0:01:39]} 38. Ne3 {[%emt 0:00:30]} Ke7 {[%emt 0:00:47]} 39. Nc4 {[%emt 0:00:41]} Bf5 {[%emt 0:00:38]} 40. Ne3 {[%emt 0:00:43]} Be6 {[%emt 0:01:45]} 41. Ng8+ {[%emt 0:08:15]} Kd6 {[%emt 0:01:23]} 42. Nf6 {[%emt 0:02:47]} a5 {[%emt 0:05:48]} 43. Ne8+ {[%emt 0:00:57]} Kd7 {[%emt 0:01:17]} 44. Nf6+ {[%emt 0:00:08]} Ke7 {[%emt 0:00:09]} 45. Ng8+ {[%emt 0:00:26]} Kd6 {[%emt 0:00:06]} 46. Nf6 {[%emt 0:00:03]} Nd8 {[%emt 0:10:03]} 47. Ne4+ {[%emt 0:03:32]} Ke7 {[%emt 0:06:03]} 48. Ke5 {[%emt 0:01:19]} Nf7+ {[%emt 0:02:10]} 49. Kf4 {[%emt 0:00:06]} c4 {[%emt 0:06:23]} 50. c3 {[%emt 0:03:58]} b5 {[%emt 0:05:19]} 51. Nf6 {[%emt 0:05:33]} Bc8 {[%emt 0:02:48]} 52. Ne4 {[%emt 0:02:31]} Bh3 {[%emt 0:03:02]} 53. Nf2 {[%emt 0:00:52]} Be6 {[%emt 0:00:06]} 54. Ne4 {[%emt 0:00:44]} Kd7 {[%emt 0:01:23]} 55. Nc5+ {[%emt 0:00:59]} Kd6 {[%emt 0:00:03]} 56. Ne4+ {[%emt 0:00:04]} Kc7 {[%emt 0:00:05]} 57. Nf6 {[%emt 0:00:25]} c5 {[%emt 0:00:31]} 58. Ne4 {[%emt 0:03:42]} Kc6 {[%emt 0:00:04]} 59. Nd2 {[%emt 0:00:47]} Bd5 {[%emt 0:02:37]} 60. a4 {[%emt 0:00:36]} bxa4 {[%emt 0:00:19]} 61. Ndxc4 {[%emt 0:00:19]} Bxc4 {[%emt 0:00:11]} 62. Nxc4 {[%emt 0:00:04]} Kb5 {[%emt 0:00:51]} 63. Na3+ {[%emt 0:00:25]} Kb6 {[%emt 0:02:52]} 64. Nc4+ {[%emt 0:00:48]} Kc6 {[%emt 0:00:08]} 65. Ne5+ {[%emt 0:01:25]} Nxe5 {[%emt 0:00:04]} 66. Kxe5 {[%emt 0:00:04]} Kb5 {[%emt 0:00:19]} 67. Kd5 {[%emt 0:00:29]} c4 {[%emt 0:01:40]} 68. Kd4 {[%emt 0:00:05]} a3 {[%emt 0:00:03]} 69. bxa3 {[%emt 0:00:05]} Ka4 {[%emt 0:00:01]} 70. Kxc4 {[%emt 0:00:11]} Kxa3 {[%emt 0:00:03]} 71. Kd5 {[%emt 0:01:14]} a4 {[%emt 0:00:04]} 72. c4 {[%emt 0:00:15]} Kb4 {[%emt 0:00:30]} 73. c5 {[%emt 0:00:06]} a3 {[%emt 0:00:06]} 74. c6 {[%emt 0:00:04]} a2 {[%emt 0:00:02]} 75. c7 {[%emt 0:00:03]} a1=Q {[%emt 0:00:03]} 76. c8=Q {[%emt 0:00:06]} Qa5+ {[%emt 0:00:15]} 77. Ke4 1/2-1/2

[Event "FRA-chT Top 12 2019"]
[Site "Brest"]
[Date "2019.05.26"]
[Round "9.4"]
[White "Feller, Sebastien"]
[Black "Lamard, Guillaume"]
[Result "1/2-1/2"]
[ECO "B50"]
[WhiteElo "2587"]
[BlackElo "2405"]
[Annotator "ChessBase"]
[PlyCount "70"]
[EventDate "2019.05.18"]
[EventType "team-tourn"]
[EventCountry "FRA"]
[SourceTitle "playchess.com"]
[Source "ChessBase"]
[SourceQuality "1"]
[TimeControl "40/5400+30:1800+30"]

1. e4 {[%emt 0:00:00]} c5 {[%emt 0:00:08]} 2. Nf3 {[%emt 0:00:00]} d6 {[%emt 0:00:02]} 3. Nc3 {[%emt 0:00:00]} Nf6 {[%emt 0:00:09]} 4. Bb5+ {[%emt 0:01:00]} Nbd7 {[%emt 0:01:08]} 5. a4 {[%emt 0:01:12]} e5 {[%emt 0:09:53]} 6. d3 {[%emt 0:11:30]} Be7 {[%emt 0:07:07]} 7. Bg5 {[%emt 0:05:04]} O-O {[%emt 0:01:12]} 8. O-O {[%emt 0:02:49]} Ne8 {[%emt 0:00:27]} 9. Bd2 {[%emt 0:09:30]} Nc7 {[%emt 0:00:29]} 10. Bc4 {[%emt 0:00:30]} Kh8 {[%emt 0:00:29]} 11. Nb5 {[%emt 0:08:58]} Nxb5 {[%emt 0:11:00]} 12. axb5 {[%emt 0:00:37]} f5 {[%emt 0:15:01]} 13. exf5 {[%emt 0:11:02]} Nb6 {[%emt 0:12:17]} 14. Be6 {[%emt 0:09:23]} Bxe6 {[%emt 0:01:27]} 15. fxe6 {[%emt 0:00:16]} Qc8 {[%emt 0:00:10]} 16. c4 {[%emt 0:00:44]} e4 {[%emt 0:01:53]} 17. dxe4 {[%emt 0:06:57]} Nxc4 {[%emt 0:00:25]} 18. Qb3 {[%emt 0:03:18]} Qxe6 {[%emt 0:02:19]} 19. Bc1 {[%emt 0:17:55]} Qxe4 {[%emt 0:09:03]} 20. Re1 {[%emt 0:00:44]} Rxf3 {[%emt 0:00:08]} 21. Rxe4 {[%emt 0:00:05]} Rxb3 {[%emt 0:00:04]} 22. Rxe7 {[%emt 0:00:10]} Rxb5 {[%emt 0:02:14]} 23. Rxa7 {[%emt 0:01:11]} Rb8 {[%emt 0:00:07]} 24. h4 {[%emt 0:05:14]} h6 {[%emt 0:01:47]} 25. h5 {[%emt 0:01:51]} Rb4 {[%emt 0:02:12]} 26. Rd7 {[%emt 0:02:04]} Re8 {[%emt 0:01:00]} 27. Kf1 {[%emt 0:00:41]} Rb8 {[%emt 0:06:33]} 28. g3 {[%emt 0:00:34]} Nxb2 {[%emt 0:01:00]} 29. Bd2 {[%emt 0:00:23]} Rb3 {[%emt 0:01:21]} 30. Bf4 {[%emt 0:00:33]} Nc4 {[%emt 0:00:20]} 31. Ra1 {[%emt 0:00:20]} Re8 {[%emt 0:01:00]} 32. Ra7 {[%emt 0:00:22]} Rb8 {[%emt 0:00:38]} 33. Ra1 {[%emt 0:00:29]} Re8 {[%emt 0:02:38]} 34. Ra7 {[%emt 0:00:03]} Rb8 {[%emt 0:01:04]} 35. Ra1 {[%emt 0:00:30]} Re8 {[%emt 0:00:09]} 1/2-1/2

[Event "FRA-chT Top 12 2019"]
[Site "Brest"]
[Date "2019.05.26"]
[Round "9.4"]
[White "Rambaldi, Francesco"]
[Black "Istratescu, Andrei"]
[Result "1/2-1/2"]
[ECO "A06"]
[WhiteElo "2558"]
[BlackElo "2555"]
[Annotator "RC"]
[PlyCount "127"]
[EventDate "2019.05.18"]
[EventType "team-tourn"]
[EventCountry "FRA"]
[SourceTitle "playchess.com"]
[Source "ChessBase"]
[SourceQuality "1"]
[TimeControl "40/5400+30:1800+30"]

1. Nf3 {[%emt 0:00:00]} d5 {[%emt 0:01:11]} 2. g3 {[%emt 0:00:22]} c6 {[%emt 0:01:08]} 3. Bg2 {[%emt 0:00:41]} Bg4 {[%emt 0:00:39]} 4. h3 {[%emt 0:06:37]} Bh5 {[%emt 0:07:11]} 5. c4 {[%emt 0:01:28]} e6 {[%emt 0:01:38]} 6. O-O {[%emt 0:00:53]} Nd7 {[%emt 0:01:58]} 7. Qb3 {[%emt 0:04:00]} Qb6 {[%emt 0:05:45]} 8. d3 {[%emt 0:02:59]} dxc4 {[%emt 0:08:32]} 9. Qxc4 {[%emt 0:01:29]} Bxf3 {[%emt 0:04:09]} 10. Bxf3 {[%emt 0:00:26]} Ne5 {[%emt 0:00:07]} 11. Qe4 {[%emt 0:00:06]} Nxf3+ {[%emt 0:00:22]} 12. Qxf3 {[%emt 0:00:06]} Nf6 {[%emt 0:00:09]} 13. Nd2 {[%emt 0:01:01]} Be7 {[%emt 0:01:13]} 14. Nc4 {[%emt 0:00:11]} Qd8 {[%emt 0:00:22]} 15. Bd2 {[%emt 0:00:41]} O-O {[%emt 0:01:20]} 16. b4 {[%emt 0:07:23]} Nd5 {[%emt 0:02:03]} 17. Rab1 {[%emt 0:00:13]} Bg5 {[%emt 0:03:56]} 18. Bxg5 {[%emt 0:01:55]} Qxg5 {[%emt 0:00:12]} 19. d4 {[%emt 0:04:48]} Rfd8 {[%emt 0:03:25]} 20. Rfd1 {[%emt 0:06:51]} Qe7 {[%emt 0:06:11]} 21. a3 {[%emt 0:02:41]} Nb6 {[%emt 0:04:18]} 22. Na5 {[%emt 0:01:17]} Rd7 {[%emt 0:01:11]} 23. Rd3 {[%emt 0:03:13]} Rad8 {[%emt 0:03:31]} 24. Rbd1 {[%emt 0:00:17]} h6 {[%emt 0:01:09]} 25. h4 {[%emt 0:02:27]} Qf6 {[%emt 0:10:47]} 26. Qxf6 {[%emt 0:03:23]} gxf6 {[%emt 0:00:30]} 27. Kf1 {[%emt 0:03:58]} f5 {[%emt 0:01:26]} 28. e3 {[%emt 0:01:42]} Kf8 {[%emt 0:00:30]} 29. Ke2 {[%emt 0:00:07]} Ke7 {[%emt 0:00:34]} 30. Rc1 {[%emt 0:09:12]} a6 {[%emt 0:03:57]} 31. Rdc3 {[%emt 0:06:17]} Nc8 {[%emt 0:06:16]} 32. Nc4 {[%emt 0:08:42]} Rd5 {[%emt 0:02:04]} 33. Ne5 {[%emt 0:03:25]} Nd6 {[%emt 0:02:10]} 34. Rc5 {[%emt 0:04:26]} Ne4 {[%emt 0:01:00]} 35. Rxd5 {[%emt 0:00:03]} Rxd5 {[%emt 0:00:09]} 36. Rg1 {[%emt 0:03:08]} Rd8 {[%emt 0:01:56]} 37. f3 {[%emt 0:03:17]} Nd6 {[%emt 0:01:15]} 38. Nd3 {[%emt 0:05:56]} a5 {[%emt 0:01:29]} 39. bxa5 {[%emt 0:02:44]} Ra8 {[%emt 0:00:07]} 40. Rb1 {[%emt 0:00:50]} Rxa5 {[%emt 0:01:05]} 41. Nc5 {[%emt 0:04:47]} Rxa3 {[%emt 0:03:11]} 42. Nxb7 {[%emt 0:00:25]} Nc4 {[%emt 0:00:38]} 43. e4 {[%emt 0:07:07]} fxe4 {[%emt 0:03:02]} 44. fxe4 {[%emt 0:00:06]} Rxg3 {[%emt 0:01:43]} 45. Nc5 {[%emt 0:01:37]} Nd6 {[%emt 0:01:08]} 46. Rb6 {[%emt 0:01:33]} Nb5 {[%emt 0:02:08]} 47. Rb7+ {[%emt 0:01:00]} Kf6 {[%emt 0:07:33]} 48. Nd7+ {[%emt 0:00:50]} Kg6 {[%emt 0:00:15]} 49. Kf2 {[%emt 0:02:35]} Rc3 {[%emt 0:05:06]} 50. Nf8+ {[%emt 0:03:13]} Kh5 {[%emt 0:00:46]} 51. Rxf7 {[%emt 0:00:05]} Nxd4 {[%emt 0:00:15]} 52. Rf6 {[%emt 0:00:24]} e5 {[%emt 0:02:07]} 53. Nd7 {[%emt 0:00:47]} Kxh4 {[%emt 0:01:18]} 54. Rxh6+ {[%emt 0:02:21]} Kg5 {[%emt 0:00:24]} 55. Rh8 {[%emt 0:00:03]} Rf3+ {[%emt 0:04:23]} 56. Kg2 {[%emt 0:00:04]} Kf4 {[%emt 0:00:19]} 57. Rh4+ {[%emt 0:00:38]} Ke3 {[%emt 0:00:40]} 58. Nxe5 {[%emt 0:00:38]} Rf2+ {[%emt 0:00:38]} 59. Kg3 {[%emt 0:03:12]} Ne2+ {[%emt 0:00:46]} 60. Kg4 {[%emt 0:02:58]} c5 {[%emt 0:01:40]} 61. Kg5 {[%emt 0:00:15]} Rf8 {[%emt 0:02:04]} 62. Nc4+ {[%emt 0:01:36]} Kd3 {[%emt 0:01:42]} 63. Ne5+ {[%emt 0:00:10]} Ke3 {[%emt 0:04:09]} 64. Nc4+ {[%emt 0:00:26] Kxe4} 1/2-1/2

[Event "FRA-chT Top 12 2019"]
[Site "Brest"]
[Date "2019.05.26"]
[Round "9.4"]
[White "Bailet, Pierre"]
[Black "Rakotomaharo, Fy Antenaina"]
[Result "1-0"]
[ECO "B33"]
[WhiteElo "2466"]
[BlackElo "2410"]
[Annotator "ChessBase"]
[PlyCount "81"]
[EventDate "2019.05.18"]
[EventType "team-tourn"]
[EventCountry "FRA"]
[SourceTitle "playchess.com"]
[Source "ChessBase"]
[SourceQuality "1"]
[TimeControl "40/5400+30:1800+30"]

1. e4 {[%emt 0:00:00]} c5 {[%emt 0:00:00]} 2. Nc3 {[%emt 0:00:00]} Nc6 {[%emt 0:00:33]} 3. Nge2 {[%emt 0:00:26]} Nf6 {[%emt 0:03:27]} 4. d4 {[%emt 0:00:39]} cxd4 {[%emt 0:00:07]} 5. Nxd4 {[%emt 0:00:07]} e5 {[%emt 0:00:25]} 6. Ndb5 {[%emt 0:00:16]} d6 {[%emt 0:00:07]} 7. Bg5 {[%emt 0:00:27]} a6 {[%emt 0:00:07]} 8. Na3 {[%emt 0:00:08]} b5 {[%emt 0:02:55]} 9. Bxf6 {[%emt 0:01:21]} gxf6 {[%emt 0:00:04]} 10. Nd5 {[%emt 0:00:10]} f5 {[%emt 0:00:09]} 11. Bd3 {[%emt 0:00:48]} Be6 {[%emt 0:00:12]} 12. O-O {[%emt 0:04:14]} Bg7 {[%emt 0:04:37]} 13. Qh5 {[%emt 0:02:50]} f4 {[%emt 0:14:43]} 14. c4 {[%emt 0:01:31]} bxc4 {[%emt 0:05:38]} 15. Bxc4 {[%emt 0:00:12]} O-O {[%emt 0:01:57]} 16. Rac1 {[%emt 0:04:14]} Rb8 {[%emt 0:20:45]} 17. b3 {[%emt 0:04:59]} Nd4 {[%emt 0:07:06]} 18. Nc2 {[%emt 0:03:31]} Nxc2 {[%emt 0:01:20]} 19. Rxc2 {[%emt 0:00:08]} a5 {[%emt 0:00:56]} 20. Rd1 {[%emt 0:10:22]} Qd7 {[%emt 0:02:20]} 21. Qh4 {[%emt 0:01:49]} Bxd5 {[%emt 0:08:30]} 22. Rxd5 {[%emt 0:03:22]} a4 {[%emt 0:00:09]} 23. Rcd2 {[%emt 0:01:22]} Rb6 {[%emt 0:02:23]} 24. Qh5 {[%emt 0:04:37]} axb3 {[%emt 0:06:33]} 25. axb3 {[%emt 0:00:18]} Kh8 {[%emt 0:00:14]} 26. h3 {[%emt 0:04:27]} Ra8 {[%emt 0:04:37]} 27. Kh2 {[%emt 0:03:25]} Qe7 {[%emt 0:01:48]} 28. R5d3 {[%emt 0:06:04]} Ra7 {[%emt 0:03:24]} 29. g4 {[%emt 0:07:50]} fxg3+ {[%emt 0:06:08]} 30. fxg3 {[%emt 0:01:30]} Qf6 {[%emt 0:00:40]} 31. Kg2 {[%emt 0:03:11]} Bh6 {[%emt 0:01:08]} 32. Rf2 {[%emt 0:01:43]} Qg6 {[%emt 0:00:18]} 33. Qe2 {[%emt 0:01:17]} Bf4 {[%emt 0:01:31]} 34. Kh2 {[%emt 0:01:22]} Bg5 {[%emt 0:01:15]} 35. Rdf3 {[%emt 0:01:08]} Rbb7 {[%emt 0:00:20]} 36. Bd5 {[%emt 0:02:53]} Rc7 {[%emt 0:00:28]} 37. b4 {[%emt 0:01:08]} Bd8 {[%emt 0:00:37]} 38. Qb5 {[%emt 0:01:03]} Qg8 {[%emt 0:00:54]} 39. Qb8 {[%emt 0:02:42]} Bg5 {[%emt 0:00:28]} 40. Qxg8+ {[%emt 0:01:52]} Kxg8 {[%emt 0:00:01]} 41. b5 {[%emt 0:30:09]} 1-0

[Event "FRA-chT Top 12 2019"]
[Site "Brest"]
[Date "2019.05.26"]
[Round "9.4"]
[White "Miezis, Normunds"]
[Black "Moussard, Jules"]
[Result "1-0"]
[ECO "A10"]
[WhiteElo "2456"]
[BlackElo "2583"]
[Annotator "ChessBase"]
[PlyCount "173"]
[EventDate "2019.05.18"]
[EventType "team-tourn"]
[EventCountry "FRA"]
[SourceTitle "playchess.com"]
[Source "ChessBase"]
[SourceQuality "1"]
[TimeControl "40/5400+30:1800+30"]

1. c4 {[%emt 0:00:00]} d6 {[%emt 0:00:00]} 2. Nc3 {[%emt 0:00:34]} e5 {[%emt 0:00:00]} 3. g3 {[%emt 0:00:44]} f5 {[%emt 0:00:40]} 4. d4 {[%emt 0:02:30]} Be7 {[%emt 0:00:44]} 5. Bg2 {[%emt 0:01:31]} Nf6 {[%emt 0:04:58]} 6. Nf3 {[%emt 0:04:11]} e4 {[%emt 0:02:21]} 7. Ng5 {[%emt 0:01:10]} c6 {[%emt 0:02:47]} 8. d5 {[%emt 0:04:50]} Ng4 {[%emt 0:04:41]} 9. Nh3 {[%emt 0:02:58]} Ne5 {[%emt 0:01:27]} 10. b3 {[%emt 0:03:08]} Bf6 {[%emt 0:00:36]} 11. Bb2 {[%emt 0:00:41]} O-O {[%emt 0:03:09]} 12. O-O {[%emt 0:01:54]} c5 {[%emt 0:13:57]} 13. f3 {[%emt 0:08:14]} exf3 {[%emt 0:12:48]} 14. exf3 {[%emt 0:01:04]} Na6 {[%emt 0:06:42]} 15. Qd2 {[%emt 0:05:35]} Nc7 {[%emt 0:04:17]} 16. Nf2 {[%emt 0:05:05]} Bd7 {[%emt 0:01:36]} 17. a4 {[%emt 0:10:18]} a6 {[%emt 0:02:53]} 18. f4 {[%emt 0:02:23]} Nf7 {[%emt 0:01:32]} 19. a5 {[%emt 0:03:52]} Rb8 {[%emt 0:02:33]} 20. Ne2 {[%emt 0:04:26]} b5 {[%emt 0:03:03]} 21. axb6 {[%emt 0:03:08]} Rxb6 {[%emt 0:00:03]} 22. Nc1 {[%emt 0:01:23]} Re8 {[%emt 0:05:38]} 23. Ra2 {[%emt 0:01:47]} g6 {[%emt 0:04:20]} 24. Bc3 {[%emt 0:02:08]} Kg7 {[%emt 0:01:29]} 25. b4 {[%emt 0:05:12]} cxb4 {[%emt 0:03:29]} 26. Bxb4 {[%emt 0:00:23]} Rb8 {[%emt 0:03:41]} 27. Ba5 {[%emt 0:04:04]} Qc8 {[%emt 0:01:18]} 28. Bc3 {[%emt 0:02:45]} Qd8 {[%emt 0:00:51]} 29. Ne2 {[%emt 0:01:29]} Bxc3 {[%emt 0:01:49]} 30. Qxc3+ {[%emt 0:00:55]} Qf6 {[%emt 0:00:04]} 31. Nd4 {[%emt 0:02:40]} Rec8 {[%emt 0:04:38]} 32. Re1 {[%emt 0:05:45]} Kg8 {[%emt 0:00:39]} 33. Qd3 {[%emt 0:01:59]} Re8 {[%emt 0:00:36]} 34. Rc1 {[%emt 0:01:06]} Rb4 {[%emt 0:00:55]} 35. Qc3 {[%emt 0:00:53]} Rbb8 {[%emt 0:02:40]} 36. Raa1 {[%emt 0:00:42]} Kg7 {[%emt 0:00:55]} 37. Rd1 {[%emt 0:01:38]} Re7 {[%emt 0:01:19]} 38. Rac1 {[%emt 0:01:38]} Ree8 {[%emt 0:03:00]} 39. Qa5 {[%emt 0:02:55]} Rec8 {[%emt 0:00:30]} 40. Qa1 {[%emt 0:00:24]} Re8 {[%emt 0:00:48]} 41. Nd3 {[%emt 0:31:23]} Re3 {[%emt 0:02:11]} 42. c5 {[%emt 0:00:00]} Nb5 {[%emt 0:07:43]} 43. Nc2 {[%emt 0:00:00]} Re2 {[%emt 0:00:59]} 44. Qxf6+ {[%emt 0:00:00]} Kxf6 {[%emt 0:00:01]} 45. c6 {[%emt 0:00:00]} Bc8 {[%emt 0:02:37]} 46. Kf1 {[%emt 0:00:00]} Nc3 {[%emt 0:03:42]} 47. Nd4 {[%emt 0:00:00]} Rxg2 {[%emt 0:00:02]} 48. Kxg2 {[%emt 0:00:00]} Nxd1 {[%emt 0:00:02]} 49. Rxd1 {[%emt 0:00:00]} Nh6 {[%emt 0:00:37]} 50. Re1 {[%emt 0:00:30]} Kf7 {[%emt 0:06:07]} 51. Ne6 {[%emt 0:01:13]} Ng8 {[%emt 0:04:23]} 52. Ng5+ {[%emt 0:00:48]} Kf8 {[%emt 0:00:02]} 53. Nxh7+ {[%emt 0:00:34]} Kf7 {[%emt 0:00:01]} 54. Ng5+ {[%emt 0:00:40]} Kf8 {[%emt 0:00:00]} 55. Ne6+ {[%emt 0:01:10]} Kf7 {[%emt 0:00:02]} 56. Nd8+ {[%emt 0:00:19]} Kf8 {[%emt 0:00:01]} 57. Ne6+ {[%emt 0:01:10]} Kf7 {[%emt 0:00:01]} 58. Nd8+ {[%emt 0:01:09]} Kf8 {[%emt 0:00:00]} 59. Nb7 {[%emt 0:00:35]} Bxb7 {[%emt 0:00:51]} 60. Rb1 {[%emt 0:00:04]} Nf6 {[%emt 0:00:04]} 61. Rxb7 {[%emt 0:00:21]} Rxb7 {[%emt 0:00:02]} 62. cxb7 {[%emt 0:00:09]} Nd7 {[%emt 0:00:01]} 63. Kf3 {[%emt 0:01:18]} Ke8 {[%emt 0:00:49]} 64. g4 {[%emt 0:00:28]} Kd8 {[%emt 0:01:14]} 65. gxf5 {[%emt 0:00:18]} gxf5 {[%emt 0:00:03]} 66. Nb4 {[%emt 0:00:26]} Kc7 {[%emt 0:00:48]} 67. Nxa6+ {[%emt 0:00:09]} Kxb7 {[%emt 0:00:02]} 68. Nb4 {[%emt 0:00:23]} Nf6 {[%emt 0:00:05]} 69. Kg3 {[%emt 0:01:08]} Kb6 {[%emt 0:06:10]} 70. Kh4 {[%emt 0:00:03]} Ng4 {[%emt 0:01:25]} 71. Nc6 {[%emt 0:01:52]} Nxh2 {[%emt 0:01:53]} 72. Kg5 {[%emt 0:00:16]} Kc7 {[%emt 0:00:21]} 73. Kxf5 {[%emt 0:00:19]} Kd7 {[%emt 0:00:09]} 74. Kg6 {[%emt 0:00:34]} Ng4 {[%emt 0:01:36]} 75. f5 {[%emt 0:00:24]} Ne3 {[%emt 0:00:03]} 76. f6 {[%emt 0:01:16]} Nxd5 {[%emt 0:00:01]} 77. f7 {[%emt 0:00:21]} Nc7 {[%emt 0:00:02]} 78. f8=Q {[%emt 0:00:46]} Kxc6 {[%emt 0:00:02]} 79. Kf5 {[%emt 0:00:21]} Nb5 {[%emt 0:00:14]} 80. Ke4 {[%emt 0:00:28]} Nc7 {[%emt 0:00:07]} 81. Kd3 {[%emt 0:00:19]} Kc5 {[%emt 0:00:13]} 82. Qc8 {[%emt 0:00:11]} Kc6 {[%emt 0:00:19]} 83. Kd4 {[%emt 0:00:19]} Kb6 {[%emt 0:00:06]} 84. Qd7 {[%emt 0:00:20]} Kb7 {[%emt 0:00:08]} 85. Kc4 {[%emt 0:00:11]} d5+ {[%emt 0:00:07]} 86. Kc5 {[%emt 0:00:07]} d4 {[%emt 0:00:05]} 87. Kd6 {[%emt 0:00:09]} 1-0